[Event "51st Rilton Cup 2023-24"]
[Site "Stockholm"]
[Date "2024.01.04"]
[Round "8.6"]
[White "Gorshtein, Ido"]
[Black "Rozentalis, Eduardas"]
[Result "1/2-1/2"]
[ECO "E04"]
[WhiteElo "2523"]
[BlackElo "2454"]
[Annotator "TA"]
[PlyCount "123"]
[EventDate "2023.12.27"]
[EventType "swiss"]
[EventCountry "SWE"]
[SourceTitle "playchess.com"]
[Source "ChessBase"]
[SourceQuality "1"]
[TimeControl "40/5400+30:1800+30"]

{[%evp 14,123,23,13,18,12,16,25,29,23,30,12,69,70,56,60,68,66,91,89,81,89,84,78,76,51,54,25,67,23,18,15,50,53,50,40,43,46,38,16,17,12,14,6,6,6,6,0,0,0,6,6,6,0,6,0,7,7,7,6,6,6,11,7,14,14,14,13,13,14,20,14,20,6,6,0,21,6,17,14,24,16,21,16,21,14,14,14,14,0,0,0,0,0,0,0,0,0,0,0,0,0,0,0,0,0,0,0,0,0,0,0]} 1. d4 {[%emt 0:00:04]} Nf6 {[%emt 0:00:14]} 2. c4 {[%emt 0:00:03]} e6 {[%emt 0:00:05]} 3. g3 {[%emt 0:00:03]} d5 {[%emt 0:02:14]} 4. Nf3 {[%emt 0:00:13]} dxc4 {[%emt 0:00:16]} 5. Bg2 {[%emt 0:00:08]} Bd7 {[%emt 0:00:12]} 6. Ne5 {[%emt 0:00:28]} Bc6 {[%emt 0:00:20]} 7. Nxc6 {[%emt 0:00:07]} Nxc6 {[%emt 0:00:04]} 8. O-O {[%emt 0:00:16]} Qd7 {[%emt 0:00:59] E04: Open Catalan: 5 Nf3.} 9. e3 {[%emt 0:00:05]} Rd8 {[%emt 0:01:27]} 10. Qe2 {[%emt 0:00:31] 10.Qc2 gains popularity.} e5 {[%emt 0:04:29] White has an edge.} 11. Qxc4 {[%emt 0:00:30]} exd4 {[%emt 0:01:15]} 12. Qb5 {[%emt 0:00:10]} Be7 {[%emt 0:06:43]} (12... Rb8 $11) 13. Qxb7 $14 {[%emt 0:02:02]} Nd5 {[%emt 0:00:06]} 14. exd4 {[%emt 0:05:02]} Nxd4 {[%emt 0:01:13]} 15. Nc3 {[%emt 0:02:51] [#]} c6 $146 {[%emt 0:05:59]} ({Predecessor:} 15... Nxc3 16. bxc3 Ne2+ 17. Kh1 O-O 18. Qxa7 Bf6 19. Be3 Bxc3 20. Rab1 Bd4 21. Bxd4 Nxd4 {½-½ Van Seben,E (2505)-Baklanov,V (2383) WC-2014-S-00001 2018}) 16. Qxd7+ {[%emt 0:03:28]} Rxd7 {[%emt 0:00:19]} 17. Nxd5 {[%emt 0:02:17]} cxd5 {[%emt 0:00:28]} 18. Rd1 {[%emt 0:03:01]} Bf6 {[%emt 0:10:21]} 19. Re1+ {[%emt 0:10:19]} Ne6 {[%emt 0:02:38]} 20. Bh3 {[%emt 0:00:59][%cal Oc1d2]} Rd6 {[%emt 0:00:21]} 21. Bf4 {[%emt 0:14:06]} Rb6 {[%emt 0:06:21]} 22. Be5 {[%emt 0:00:20]} Bxe5 {[%emt 0:11:10]} 23. Rxe5 {[%emt 0:00:04]} Rxb2 {[%emt 0:00:12]} 24. Rxd5 {[%emt 0:03:21]} O-O {[%emt 0:01:09]} 25. Ra5 {[%emt 0:00:06]} Rb7 {[%emt 0:09:13]} 26. Bg2 {[%emt 0:00:24]} Rc7 {[%emt 0:00:38]} 27. Rb1 {[%emt 0:00:11]} Rd8 {[%emt 0:03:19]} 28. h4 {[%emt 0:05:40]} g6 {[%emt 0:01:38]} 29. Rb2 {[%emt 0:05:47]} Kg7 {[%emt 0:02:44]} 30. Bf3 {[%emt 0:01:28]} Nd4 {[%emt 0:04:49]} 31. Bd5 {[%emt 0:03:23]} Rd6 {[%emt 0:04:00]} 32. Kg2 {[%emt 0:02:05]} h5 {[%emt 0:09:22]} 33. Rb4 {[%emt 0:06:53]} Ne6 {[%emt 0:05:25]} 34. Be4 {[%emt 0:05:38]} Rd4 {[%emt 0:03:14]} 35. Rxd4 {[%emt 0:01:38]} Nxd4 $11 {[%emt 0:00:04][%mdl 4096] Endgame KRB-KRN} 36. Bd5 {[%emt 0:00:32]} Kf6 {[%emt 0:01:11]} 37. Ba8 {[%emt 0:01:08]} Ne6 {[%emt 0:01:56]} 38. Kf3 {[%emt 0:00:37]} Re7 {[%emt 0:01:17]} 39. Be4 {[%emt 0:03:51]} Nd4+ {[%emt 0:01:38]} 40. Ke3 {[%emt 0:00:15]} Nf5+ {[%emt 0:00:37]} 41. Kd3 {[%emt 0:30:51]} Nd6 {[%emt 0:07:53]} 42. Bf3 {[%emt 0:00:00]} Rc7 {[%emt 0:01:42]} 43. Ra4 {[%emt 0:00:00]} Ke5 {[%emt 0:01:54]} 44. Ra5+ {[%emt 0:00:00]} Kf6 {[%emt 0:00:08]} 45. Bd5 {[%emt 0:00:00]} Nf5 {[%emt 0:02:06]} 46. Ra6+ {[%emt 0:00:00]} Ke7 {[%emt 0:01:34]} 47. Bc6 {[%emt 0:00:00]} Nh6 {[%emt 0:02:00] The position is equal.} 48. Bf3 {[%emt 0:00:00]} Ng8 {[%emt 0:08:01]} 49. Ra4 {[%emt 0:00:00]} Nf6 {[%emt 0:00:20]} 50. Kd4 {[%emt 0:00:00]} Rd7+ {[%emt 0:04:55]} 51. Kc4 {[%emt 0:00:00]} Ng4 {[%emt 0:01:09]} 52. Bxg4 {[%emt 0:00:00]} hxg4 {[%emt 0:00:03] KR-KR} 53. Kc3 {[%emt 0:00:00]} f5 {[%emt 0:00:18]} 54. Ra6 {[%emt 0:00:00]} Kf7 {[%emt 0:00:10]} 55. a4 {[%emt 0:00:34]} Kg7 {[%emt 0:00:15]} 56. Re6 {[%emt 0:03:24]} Kh6 {[%emt 0:00:19]} 57. Rc6 {[%emt 0:03:19]} Rb7 {[%emt 0:00:34]} 58. Ra6 {[%emt 0:00:32]} f4 {[%emt 0:01:33]} 59. gxf4 {[%emt 0:03:20]} Rf7 {[%emt 0:00:22]} 60. Kd3 {[%emt 0:00:28]} Rxf4 {[%emt 0:00:20]} 61. Ke2 {[%emt 0:00:21]} Kh5 {[%emt 0:01:44]} 62. Rxa7 {[%emt 0:00:10] Weighted Error Value: White=0.06 (flawless) /Black=0.06 (flawless)} 1/2-1/2

[Event "51st Rilton Cup 2023-24"]
[Site "Stockholm"]
[Date "2024.01.04"]
[Round "8.7"]
[White "Prraneeth Vuppala"]
[Black "Aradhya, Garg"]
[Result "1-0"]
[ECO "D37"]
[WhiteElo "2515"]
[BlackElo "2390"]
[Annotator "TA"]
[PlyCount "81"]
[EventDate "2023.12.27"]
[EventType "swiss"]
[EventCountry "SWE"]
[SourceTitle "playchess.com"]
[Source "ChessBase"]
[SourceQuality "1"]
[TimeControl "40/5400+30:1800+30"]

{[%evp 18,81,31,16,51,40,50,56,158,156,174,169,167,167,153,181,295,275,329,143,147,145,344,383,403,410,398,166,206,200,337,356,363,341,632,635,619,596,557,0,596,0,531,365,391,381,577,579,579,579,576,570,569,564,558,555,603,491,2454,1736,29990,29991,29991,29992,29998,29999]} 1. d4 {[%emt 0:07:36]} d5 {[%emt 0:00:05]} 2. c4 {[%emt 0:00:14]} e6 {[%emt 0:00:53]} 3. Nf3 {[%emt 0:01:37]} Nf6 {[%emt 0:00:14]} 4. Nc3 {[%emt 0:00:09]} Be7 {[%emt 0:00:56]} 5. Bf4 {[%emt 0:00:34]} O-O {[%emt 0:00:06]} 6. e3 {[%emt 0:00:29]} c5 {[%emt 0:03:55]} 7. dxc5 {[%emt 0:02:05]} Bxc5 {[%emt 0:00:09]} 8. Qc2 {[%emt 0:00:19]} Nc6 {[%emt 0:00:29]} 9. a3 {[%emt 0:03:15]} Qa5 {[%emt 0:08:14]} 10. Rd1 $1 {[%emt 0:06:21] 10.Rd1 is better than 10.0-0-0.} h6 {[%emt 0:05:32] D37: Queen's Gambit Declined: 5 Bf4.} 11. Be2 {[%emt 0:01:19]} (11. b4 Nxb4 12. Qa4 (12. axb4 Bxb4 13. Rc1 Ne4 $17) 12... Nc6 13. Qxa5 Nxa5 14. cxd5 Bxa3 $17) 11... dxc4 {[%emt 0:28:37]} 12. Bxc4 {[%emt 0:00:36] [#]} Nh5 $146 {[%emt 0:04:56]} (12... Bd7 $14) ({Predecessor:} 12... Be7 13. O-O Nh5 14. Bd6 Nf6 15. b4 Qh5 16. Bg3 e5 17. Be2 Bf5 18. Qb2 Bg4 {1-0 Ivic,V (2571)-Vogel,R (2441) EU-ch 21st Reykjavik 2021 (6)}) 13. b4 $16 {[%emt 0:10:15] White is more active.} Nxb4 {[%emt 0:00:17]} 14. axb4 {[%emt 0:00:09]} Qxb4 {[%emt 0:01:38]} 15. Ne5 {[%emt 0:08:32] 0-0 would be deadly.} Nxf4 {[%emt 0:04:04]} 16. exf4 {[%emt 0:00:17]} f6 {[%emt 0:00:43]} (16... Bd6 {was necessary.}) 17. Rb1 $18 {[%emt 0:06:25]} Qa5 {[%emt 0:00:43]} 18. Rb5 {[%emt 0:11:11]} (18. Ng6 $18) 18... Qa1+ $16 {[%emt 0:01:21] [#]} 19. Nd1 $1 {[%emt 0:01:08]} Bb6 {[%emt 0:07:11]} (19... Bxf2+ $16 20. Qxf2 (20. Kxf2 fxe5 21. Ke2 Qd4 $14) 20... a6) 20. Ng6 $18 {[%emt 0:09:25]} Ba5+ {[%emt 0:01:36]} 21. Ke2 {[%emt 0:00:27]} Rd8 {[%emt 0:00:38]} 22. Bd3 {[%emt 0:01:14]} (22. Ne3 $142 Qxh1 23. Rxa5) 22... Bd7 {[%emt 0:05:46]} 23. Rxb7 {[%emt 0:08:54] aiming for Qc4.} Bb6 {[%emt 0:06:59]} (23... Rab8 {was worth a try.} 24. Ne7+ (24. Rxa7 Ba4 $11) 24... Kh8 25. Ng6+ (25. Rxa7 Be8 $18) 25... Kg8 26. Ne7+ (26. Rxa7 Ba4 $11) 26... Kh8 27. Rxb8 (27. Rxa7 Be8 $16) (27. Ng6+ Kg8 $18) 27... Rxb8) 24. Bc4 {[%emt 0:04:49][%cal Ob7d7] [#] And now Rxd7! would win.} Bc8 {[%emt 0:08:20]} 25. Rf1 {[%emt 0:08:53]} (25. Ne7+ Kh8 $18) 25... Rd6 $2 {[%emt 0:01:50]} (25... Bxb7 $2 26. Bxe6+ Kh7 27. Nf8+ Kh8 28. Qh7#) (25... Qa5 26. Ne3 Qd2+ 27. Qxd2 Rxd2+ 28. Kxd2 Bxb7 29. Bxe6+ Kh7) 26. Ne3 {[%emt 0:01:35] Strongly threatening Re7.} Qa5 {[%emt 0:00:49]} 27. Ne7+ {[%emt 0:03:38]} Kh8 {[%emt 0:02:13]} 28. Ng6+ {[%emt 0:02:20]} Kg8 {[%emt 0:00:02]} 29. Ne7+ {[%emt 0:00:26]} Kh8 {[%emt 0:00:22]} 30. Nxc8 Rxc8 {[%emt 0:00:01]} 31. Qg6 {[%emt 0:00:26][%csl Gb7][%cal Rg6g7]} Bc7 {[%emt 0:01:25]} (31... Rg8 $142 32. Rd1 Rxd1 33. Nxd1 Qa4) 32. Bd3 {[%emt 0:01:18][%csl Gd3][%cal Rg6h7]} f5 {[%emt 0:00:14] White must now prevent ...Qa2+.} 33. Nc4 {[%emt 0:00:17][%csl LRa5,LRd6]} Qa2+ {[%emt 0:04:45]} 34. Rb2 {[%emt 0:00:02]} Qa4 {[%emt 0:00:02][%cal Od6d3] Hoping for ...Rxd3!} 35. Nxd6 {[%emt 0:00:19]} Bxd6 {[%emt 0:00:01]} 36. Rfb1 {[%emt 0:00:33]} ({Not} 36. Qxe6 Re8 $17) ({Inferior is} 36. Rb7 Rc2+ 37. Bxc2 Qxc2+ 38. Ke1 Qe4+ 39. Kd1 Qxb7 40. Qe8+ (40. Qxe6 Qb5 $11) 40... Kh7 41. Qxe6 Qb5 $11) 36... Bxf4 {[%emt 0:00:31]} 37. Kf1 {[%emt 0:00:36]} ({And not} 37. Qxe6 Re8 $11) 37... Be5 {[%emt 0:01:59]} (37... Qd7 $142 38. Ba6 Qe8 39. Qxe8+ Rxe8) 38. Qxe6 {[%emt 0:00:28]} Re8 {[%emt 0:00:25]} 39. Qxf5 {[%emt 0:00:12][%csl Gd3][%cal Rf5h7] White mates.} Kg8 {[%emt 0:00:17]} 40. Rb7 {[%emt 0:00:19]} Bf6 {[%emt 0:00:08]} 41. Qh7+ {[%emt 0:30:20] A brilliant game!   Weighted Error Value: White=0.98/Black=0.54} 1-0

[Event "51st Rilton Cup 2023-24"]
[Site "Stockholm"]
[Date "2024.01.04"]
[Round "8.8"]
[White "Socko, Monika"]
[Black "Subelj, Jan"]
[Result "1/2-1/2"]
[ECO "D11"]
[WhiteElo "2396"]
[BlackElo "2512"]
[Annotator "TA"]
[PlyCount "68"]
[EventDate "2023.12.27"]
[EventType "swiss"]
[EventCountry "SWE"]
[SourceTitle "playchess.com"]
[Source "ChessBase"]
[SourceQuality "1"]
[TimeControl "40/5400+30:1800+30"]

{[%evp 11,68,0,12,2,4,6,32,33,27,13,25,0,0,0,0,0,8,0,0,0,8,-31,-41,-25,-32,-20,0,-55,-31,-29,-20,-16,0,0,18,-33,-37,-52,-54,-43,-53,-64,-32,-35,0,0,0,0,0,0,0,0,0,0,0,0,0,0,0]} 1. d4 {[%emt 0:01:37]} Nf6 {[%emt 0:00:39]} 2. Nf3 {[%emt 0:00:06]} d5 {[%emt 0:02:42]} 3. g3 {[%emt 0:00:07]} c6 {[%emt 0:02:37]} 4. Bg2 {[%emt 0:00:18]} Bf5 {[%emt 0:00:09]} 5. c4 {[%emt 0:01:13]} e6 {[%emt 0:00:08]} 6. Nc3 {[%emt 0:00:15]} h6 {[%emt 0:00:44]} 7. Qb3 {[%emt 0:00:12] is the new trend. D11: Slav Defence: 3 Nf3 sidelines and 3...Nf6 4 e3 Bg4.} Qb6 {[%emt 0:00:24]} 8. c5 {[%emt 0:00:08]} Qc7 {[%emt 0:04:08]} 9. Bf4 {[%emt 0:01:53] White is slightly better.} Qc8 {[%emt 0:00:21]} 10. O-O {[%emt 0:00:39]} Be7 {[%emt 0:00:06]} 11. Rfe1 {[%emt 0:00:47]} O-O {[%emt 0:02:52]} 12. Nd2 {[%emt 0:05:56]} Bh7 {[%emt 0:03:43]} 13. e4 {[%emt 0:01:44][%cal Re4d5]} Rd8 {[%emt 0:01:18]} 14. Rad1 {[%emt 0:03:22]} b6 {[%emt 0:05:19]} 15. cxb6 {[%emt 0:14:04]} axb6 {[%emt 0:00:21]} 16. Qxb6 {[%emt 0:01:36]} g5 {[%emt 0:03:51] [#]} 17. Qc7 $146 {[%emt 0:07:18]} ({Predecessor:} 17. Be3 Na6 18. Qb3 Rb8 19. Qc2 Nb4 20. Qb1 c5 21. Nb3 c4 22. Nc1 Qb7 23. f4 Nxe4 24. Nxe4 Bxe4 25. Bxe4 dxe4 26. fxg5 hxg5 {0-1 Gourlay,I (2321)-Subelj,J (2498) Olympiad-44 Chennai 2022 (10.2)}) 17... Qxc7 {[%emt 0:10:33]} 18. Bxc7 {[%emt 0:00:05]} Rc8 {[%emt 0:06:25]} 19. Bxb8 {[%emt 0:09:54]} (19. Be5 $11) 19... Raxb8 {[%emt 0:00:25]} 20. Nb3 {[%emt 0:01:55]} Bb4 {[%emt 0:02:24]} 21. f3 {[%emt 0:06:12][%cal Bf2f3,Bf3g4][%mdl 32]} g4 {[%emt 0:09:16]} 22. fxg4 $1 {[%emt 0:09:51]} Bxe4 {[%emt 0:08:31]} 23. Bxe4 {[%emt 0:14:27]} (23. Nxe4 $11 Nxe4 24. Re2) 23... Bxc3 $15 {[%emt 0:00:11]} ({Resist} 23... Nxe4 24. Nxe4 dxe4 25. Rxe4 $16) 24. bxc3 {[%emt 0:00:20][%cal Bb2c3,Bc3c4][%mdl 32]} Nxe4 {[%emt 0:00:06]} 25. Rc1 {[%emt 0:00:39]} Ra8 {[%emt 0:00:48]} 26. Re2 {[%emt 0:00:32]} c5 {[%emt 0:00:13][%cal Bc6c5,Bc5d4,Bd4d3][%mdl 32]} 27. Rec2 {[%emt 0:05:01]} Ra3 {[%emt 0:02:18]} (27... c4 $5 {[%cal Rc4b3]} 28. Nd2 Nd6 $11) 28. c4 {[%emt 0:01:52] The position is equal.} cxd4 {[%emt 0:00:10] [#] And now ...d3 would win.} 29. cxd5 {[%emt 0:06:03]} (29. Nxd4 {simplifies} Rxc4 30. Rxc4 dxc4 31. Rxc4 Nf6 32. Ne2) 29... Rxc2 {[%emt 0:03:41]} 30. Rxc2 $11 {[%emt 0:00:01] KRN-KRN} d3 {[%emt 0:00:26]} 31. Rc8+ {[%emt 0:00:40]} Kg7 {[%emt 0:00:07][%cal Oa3b3]} 32. dxe6 {[%emt 0:00:32]} fxe6 {[%emt 0:00:14]} 33. Rd8 {[%emt 0:00:43]} Rxa2 {[%emt 0:00:14] [#] White must now prevent ...d2.} 34. Rxd3 {[%emt 0:00:34]} Nf2 {[%emt 0:00:25] Weighted Error Value: White=0.10 (very precise) /Black=0.06 (flawless)} 1/2-1/2

[Event "51st Rilton Cup 2023-24"]
[Site "Stockholm"]
[Date "2024.01.04"]
[Round "8.9"]
[White "Terrieux, Kevin"]
[Black "Malek, Jan"]
[Result "0-1"]
[ECO "D38"]
[WhiteElo "2432"]
[BlackElo "2434"]
[Annotator "RC"]
[PlyCount "130"]
[EventDate "2023.12.27"]
[EventType "swiss"]
[EventCountry "SWE"]
[SourceTitle "playchess.com"]
[Source "ChessBase"]
[SourceQuality "1"]
[TimeControl "40/5400+30:1800+30"]

1. d4 {[%emt 0:00:10]} d5 {[%emt 0:00:06]} 2. c4 {[%emt 0:00:56]} e6 {[%emt 0:00:06]} 3. Nf3 {[%emt 0:00:21]} Nf6 {[%emt 0:00:06]} 4. Nc3 {[%emt 0:00:14]} Nbd7 {[%emt 0:00:06]} 5. Bg5 {[%emt 0:07:22]} Bb4 {[%emt 0:00:20]} 6. cxd5 {[%emt 0:01:09]} exd5 {[%emt 0:00:09]} 7. e3 {[%emt 0:00:19]} c5 {[%emt 0:00:07]} 8. Bd3 {[%emt 0:01:19]} Qa5 {[%emt 0:00:08]} 9. Qc2 {[%emt 0:11:57]} c4 {[%emt 0:00:59]} 10. Bf5 {[%emt 0:00:35]} O-O {[%emt 0:00:09]} 11. O-O {[%emt 0:00:24]} Re8 {[%emt 0:00:06]} 12. Nd2 {[%emt 0:12:49]} g6 {[%emt 0:00:12]} 13. Bh3 {[%emt 0:07:40]} Kg7 {[%emt 0:00:13]} 14. Rae1 {[%emt 0:03:50]} Ne4 {[%emt 0:25:48]} 15. Ndxe4 {[%emt 0:01:47]} dxe4 {[%emt 0:00:03]} 16. Bxd7 {[%emt 0:01:59]} Bxd7 {[%emt 0:00:34]} 17. Bf4 {[%emt 0:00:10]} Bc6 {[%emt 0:08:09]} 18. Rc1 {[%emt 0:07:57]} Rac8 {[%emt 0:06:16]} 19. Rfd1 {[%emt 0:03:45]} Bd5 {[%emt 0:03:35]} 20. a3 {[%emt 0:14:32]} Bxc3 {[%emt 0:03:27]} 21. bxc3 {[%emt 0:01:34]} Re6 {[%emt 0:03:00]} 22. Rb1 {[%emt 0:03:34]} Qxa3 {[%emt 0:02:22]} 23. Ra1 {[%emt 0:00:19]} Qb3 {[%emt 0:01:31]} 24. Qd2 {[%emt 0:00:17]} Ra6 {[%emt 0:06:33]} 25. Rxa6 {[%emt 0:07:56]} bxa6 {[%emt 0:00:06]} 26. Bd6 {[%emt 0:00:35]} a5 {[%emt 0:01:13]} 27. Qe1 {[%emt 0:00:52]} Qb6 {[%emt 0:10:40]} 28. Bc5 {[%emt 0:00:45]} Qc7 {[%emt 0:00:06]} 29. Rb1 {[%emt 0:01:11]} Rb8 {[%emt 0:01:02]} 30. Rxb8 {[%emt 0:00:22]} Qxb8 {[%emt 0:00:02]} 31. Qa1 {[%emt 0:00:34]} a4 {[%emt 0:00:07]} 32. h3 {[%emt 0:00:18]} Qb3 {[%emt 0:00:04]} 33. Qa3 {[%emt 0:01:47]} Qxa3 {[%emt 0:06:46]} 34. Bxa3 {[%emt 0:00:07]} g5 {[%emt 0:01:51]} 35. Kh2 {[%emt 0:02:33]} h5 {[%emt 0:01:20]} 36. h4 {[%emt 0:02:21]} f6 {[%emt 0:00:05]} 37. Kg3 {[%emt 0:01:39]} Kg6 {[%emt 0:00:48]} 38. Kh3 {[%emt 0:00:10]} Kf7 {[%emt 0:00:34]} 39. Kg3 {[%emt 0:00:18]} Ke6 {[%emt 0:00:12]} 40. Kh3 {[%emt 0:00:35]} Kd7 {[%emt 0:00:10]} 41. Kg3 {[%emt 0:30:47]} Kc6 {[%emt 0:31:16]} 42. Kh3 {[%emt 0:00:00]} Kd7 {[%emt 0:00:00]} 43. Kg3 {[%emt 0:00:00]} Ke6 {[%emt 0:00:00]} 44. Kh3 {[%emt 0:00:00]} Kf5 {[%emt 0:00:00]} 45. Kg3 {[%emt 0:00:00]} Kg6 {[%emt 0:00:00]} 46. Kh3 {[%emt 0:00:00]} a6 {[%emt 0:00:00]} 47. Kg3 {[%emt 0:00:00]} Bc6 {[%emt 0:00:00]} 48. Kh3 {[%emt 0:00:00]} Bd7+ {[%emt 0:00:00]} 49. Kg3 {[%emt 0:00:00]} Bg4 {[%emt 0:00:00]} 50. hxg5 {[%emt 0:00:00]} fxg5 {[%emt 0:00:00]} 51. f4 {[%emt 0:00:00]} exf3 {[%emt 0:00:00]} 52. gxf3 {[%emt 0:00:00]} Bd7 {[%emt 0:00:00]} 53. e4 {[%emt 0:00:00]} h4+ {[%emt 0:00:00]} 54. Kg2 {[%emt 0:00:00]} g4 {[%emt 0:00:00]} 55. f4 {[%emt 0:05:05]} Kh5 {[%emt 0:00:00]} 56. f5 {[%emt 0:01:42]} Kg5 {[%emt 0:00:56]} 57. d5 {[%emt 0:13:51]} Kf6 {[%emt 0:14:31]} 58. d6 {[%emt 0:00:00]} Ke5 {[%emt 0:00:57]} 59. Bc5 {[%emt 0:00:00]} Bc6 {[%emt 0:00:38]} 60. Kh2 {[%emt 0:00:00]} a5 {[%emt 0:00:33]} 61. Ba3 {[%emt 0:00:00]} g3+ {[%emt 0:06:00]} 62. Kh3 {[%emt 0:00:00]} Bxe4 {[%emt 0:00:20]} 63. f6 {[%emt 0:00:00]} Bf5+ {[%emt 0:00:10]} 64. Kxh4 {[%emt 0:00:00]} g2 {[%emt 0:00:06]} 65. Bc5 {[%emt 0:00:00]} Kxf6 {[%emt 0:00:07]} 0-1

[Event "51st Rilton Cup 2023-24"]
[Site "Stockholm"]
[Date "2024.01.04"]
[Round "8.10"]
[White "Bronstein, Or"]
[Black "Eggleston, David J"]
[Result "1-0"]
[ECO "E11"]
[WhiteElo "2428"]
[BlackElo "2353"]
[Annotator "RC"]
[PlyCount "69"]
[EventDate "2023.12.27"]
[EventType "swiss"]
[EventCountry "SWE"]
[SourceTitle "playchess.com"]
[Source "ChessBase"]
[SourceQuality "1"]
[TimeControl "40/5400+30:1800+30"]

1. d4 {[%emt 0:03:04]} Nf6 {[%emt 0:00:06]} 2. c4 {[%emt 0:00:47]} e6 {[%emt 0:00:13]} 3. Nf3 {[%emt 0:00:08]} Bb4+ {[%emt 0:00:10]} 4. Bd2 {[%emt 0:00:30]} Qe7 {[%emt 0:00:09]} 5. g3 {[%emt 0:00:13]} Nc6 {[%emt 0:00:11]} 6. Nc3 {[%emt 0:00:12]} Bxc3 {[%emt 0:00:56]} 7. Bxc3 {[%emt 0:00:53]} Ne4 {[%emt 0:00:31]} 8. Rc1 {[%emt 0:00:10]} O-O {[%emt 0:00:40]} 9. Bg2 {[%emt 0:04:25]} d6 {[%emt 0:00:19]} 10. d5 {[%emt 0:01:09]} Nd8 {[%emt 0:00:22]} 11. O-O {[%emt 0:02:18]} e5 {[%emt 0:03:14]} 12. Be1 {[%emt 0:06:48]} a5 {[%emt 0:02:36]} 13. Nh4 {[%emt 0:11:01]} g5 {[%emt 0:10:24]} 14. Bxe4 {[%emt 0:02:18]} gxh4 {[%emt 0:00:05]} 15. f4 {[%emt 0:09:32]} hxg3 {[%emt 0:02:41]} 16. Bxg3 {[%emt 0:02:54]} Bh3 {[%emt 0:08:47]} 17. Rf2 {[%emt 0:02:51]} f5 {[%emt 0:01:14]} 18. Bg2 {[%emt 0:09:18]} Bg4 {[%emt 0:02:05]} 19. Rc3 {[%emt 0:03:17]} Nf7 {[%emt 0:01:15]} 20. Qc2 {[%emt 0:00:58]} exf4 {[%emt 0:08:35]} 21. Bxf4 {[%emt 0:00:51]} Qf6 {[%emt 0:01:27]} 22. Bd2 {[%emt 0:12:35]} Ne5 {[%emt 0:02:16]} 23. e4 {[%emt 0:04:24]} Kh8 {[%emt 0:26:29]} 24. h3 {[%emt 0:01:15]} Bh5 {[%emt 0:00:04]} 25. Rxf5 {[%emt 0:02:15]} Qg6 {[%emt 0:00:08]} 26. Bf4 {[%emt 0:00:58]} Rxf5 {[%emt 0:05:09]} 27. exf5 {[%emt 0:00:03]} Qf6 {[%emt 0:00:16]} 28. Rg3 {[%emt 0:02:43]} Rg8 {[%emt 0:08:51]} 29. Qe4 {[%emt 0:02:14]} Re8 {[%emt 0:03:14]} 30. Bg5 {[%emt 0:00:54]} Qf7 {[%emt 0:03:05]} 31. Qh4 {[%emt 0:00:09]} Nd7 {[%emt 0:00:38]} 32. Bh6 {[%emt 0:02:29]} Rg8 {[%emt 0:01:11]} 33. Rxg8+ {[%emt 0:00:08]} Kxg8 {[%emt 0:00:05]} 34. Qd8+ {[%emt 0:00:18]} Nf8 {[%emt 0:01:22]} 35. Qg5+ {[%emt 0:00:42]} 1-0

[Event "51st Rilton Cup 2023-24"]
[Site "Stockholm"]
[Date "2024.01.04"]
[Round "8.11"]
[White "Dotzer, Lukas"]
[Black "Jarmula, Lukasz"]
[Result "0-1"]
[ECO "B00"]
[WhiteElo "2338"]
[BlackElo "2425"]
[Annotator "RC"]
[PlyCount "84"]
[EventDate "2023.12.27"]
[EventType "swiss"]
[EventCountry "SWE"]
[SourceTitle "playchess.com"]
[Source "ChessBase"]
[SourceQuality "1"]
[TimeControl "40/5400+30:1800+30"]

1. e4 {[%emt 0:00:02]} d6 {[%emt 0:00:27]} 2. d4 {[%emt 0:00:06]} Nf6 {[%emt 0:00:05]} 3. Nc3 {[%emt 0:00:08]} Nc6 {[%emt 0:00:10]} 4. d5 {[%emt 0:00:04]} Nb8 {[%emt 0:00:06]} 5. h3 {[%emt 0:00:10]} c6 {[%emt 0:03:14]} 6. g4 {[%emt 0:00:41]} g6 {[%emt 0:03:47]} 7. Bg2 {[%emt 0:06:08]} Bg7 {[%emt 0:00:50]} 8. Nge2 {[%emt 0:02:55]} h5 {[%emt 0:04:03]} 9. g5 {[%emt 0:03:27]} Nfd7 {[%emt 0:00:08]} 10. O-O {[%emt 0:04:36]} O-O {[%emt 0:02:12]} 11. Be3 {[%emt 0:03:51]} b5 {[%emt 0:03:52]} 12. Nd4 {[%emt 0:18:01]} b4 {[%emt 0:12:27]} 13. dxc6 {[%emt 0:06:43]} bxc3 {[%emt 0:03:57]} 14. cxd7 {[%emt 0:01:45]} Bxd7 {[%emt 0:00:19]} 15. e5 {[%emt 0:18:01]} cxb2 {[%emt 0:05:14]} 16. Rb1 {[%emt 0:03:25]} Na6 {[%emt 0:00:29]} 17. Bxa8 {[%emt 0:17:07]} Qxa8 {[%emt 0:00:31]} 18. Qf3 {[%emt 0:01:12]} Qc8 {[%emt 0:06:18]} 19. exd6 {[%emt 0:02:41]} e5 {[%emt 0:01:01]} 20. Nb3 {[%emt 0:01:09]} Qxc2 {[%emt 0:02:39]} 21. Nd2 {[%emt 0:04:05]} Rb8 {[%emt 0:12:41]} 22. Qe4 {[%emt 0:01:44]} Qc3 {[%emt 0:04:50]} 23. Qc4 {[%emt 0:01:30]} Qa3 {[%emt 0:00:30]} 24. Bxa7 {[%emt 0:01:40]} Rb4 {[%emt 0:03:26]} 25. Qd5 {[%emt 0:01:13]} Qxh3 {[%emt 0:03:51]} 26. f4 {[%emt 0:00:16]} exf4 {[%emt 0:02:46]} 27. Rf3 {[%emt 0:00:38]} Qg4+ {[%emt 0:01:42]} 28. Kf2 {[%emt 0:00:38]} Rb5 {[%emt 0:04:25]} 29. Qa8+ {[%emt 0:00:26]} Kh7 {[%emt 0:00:08]} 30. Ne4 {[%emt 0:00:30]} Qh4+ {[%emt 0:01:45]} 31. Kg2 {[%emt 0:00:32]} Bf5 {[%emt 0:01:02]} 32. d7 {[%emt 0:00:34]} Bxd7 {[%emt 0:01:05]} 33. Bf2 {[%emt 0:00:28]} Qg4+ {[%emt 0:00:55]} 34. Kh2 {[%emt 0:00:21]} Nc7 {[%emt 0:03:18]} 35. Qa3 {[%emt 0:00:29]} Bc6 {[%emt 0:01:14]} 36. Qd3 {[%emt 0:00:42]} Rb4 {[%emt 0:02:08]} 37. Nd2 {[%emt 0:00:29]} Ne6 {[%emt 0:01:32]} 38. Rg1 {[%emt 0:00:26]} b1=Q {[%emt 0:00:50]} 39. Qxb1 {[%emt 0:00:32]} Rxb1 {[%emt 0:00:32]} 40. Rxg4 {[%emt 0:00:17]} hxg4 {[%emt 0:00:53]} 41. Rh3+ {[%emt 0:30:41]} gxh3 {[%emt 0:30:08]} 42. Nxb1 {[%emt 0:00:03]} Nxg5 {[%emt 0:00:16]} 0-1